[Event "Betsys MČR v online bleskovém šachu 2021"]
[Site "Chess.com"]
[Date "2021.04.17"]
[Round "1"]
[White "sodikus"]
[Black "Lisak007"]
[Result "0-1"]
[WhiteElo "2305"]
[BlackElo "1791"]
[TimeControl "180+1"]
[EndTime "9:08:39 PDT"]
[Termination "Uživatel Lisak007 zvítězil na čas"]

1. c4 {[%clk 0:02:57.4]} 1... Nf6 {[%clk 0:02:55.2]} 2. Nc3 {[%clk 0:02:56.2]}
2... d6 {[%clk 0:02:55.5]} 3. d4 {[%clk 0:02:50.1]} 3... g6 {[%clk 0:02:55.5]}
4. g3 {[%clk 0:02:48.3]} 4... Bg7 {[%clk 0:02:55.5]} 5. Bg2 {[%clk 0:02:49]}
5... O-O {[%clk 0:02:55.5]} 6. Nf3 {[%clk 0:02:49.1]} 6... Nbd7 {[%clk
0:02:55.6]} 7. O-O {[%clk 0:02:48.7]} 7... e5 {[%clk 0:02:55.5]} 8. dxe5 {[%clk
0:02:48.9]} 8... Nxe5 {[%clk 0:02:50.7]} 9. Nxe5 {[%clk 0:02:45]} 9... dxe5
{[%clk 0:02:50.8]} 10. Qc2 {[%clk 0:02:41]} 10... c6 {[%clk 0:02:50.1]} 11. Rd1
{[%clk 0:02:39.4]} 11... Qe7 {[%clk 0:02:41.9]} 12. b3 {[%clk 0:02:37.3]} 12...
Bf5 {[%clk 0:02:41.6]} 13. e4 {[%clk 0:02:36.5]} 13... Bg4 {[%clk 0:02:39.3]}
14. f3 {[%clk 0:02:35.9]} 14... Be6 {[%clk 0:02:37.5]} 15. Be3 {[%clk
0:02:34.9]} 15... b6 {[%clk 0:02:30.6]} 16. Rd2 {[%clk 0:02:14.4]} 16... Rad8
{[%clk 0:02:29.6]} 17. Rad1 {[%clk 0:02:13.9]} 17... Nh5 {[%clk 0:02:28.9]} 18.
Na4 {[%clk 0:01:58.5]} 18... c5 {[%clk 0:01:52.1]} 19. Nc3 {[%clk 0:01:57.1]}
19... f5 {[%clk 0:01:51.4]} 20. exf5 {[%clk 0:01:19.7]} 20... gxf5 {[%clk
0:01:48.2]} 21. Nd5 {[%clk 0:01:11.3]} 21... Bxd5 {[%clk 0:01:46.2]} 22. Rxd5
{[%clk 0:01:11.3]} 22... f4 {[%clk 0:01:46.2]} 23. Bf2 {[%clk 0:00:53.2]} 23...
Qg5 {[%clk 0:01:16.7]} 24. h4 {[%clk 0:00:28.7]} 24... Qe7 {[%clk 0:01:10]} 25.
g4 {[%clk 0:00:18.4]} 25... Nf6 {[%clk 0:01:09.2]} 26. Rxd8 {[%clk 0:00:18.1]}
26... Rxd8 {[%clk 0:01:08.5]} 27. g5 {[%clk 0:00:18]} 27... Ne8 {[%clk 0:00:43]}
28. Bh3 {[%clk 0:00:17.4]} 28... Nc7 {[%clk 0:00:34.8]} 29. Rd3 {[%clk
0:00:15.1]} 29... Rxd3 {[%clk 0:00:28.4]} 30. Qxd3 {[%clk 0:00:15.3]} 30... Bf8
{[%clk 0:00:22]} 31. Qf5 {[%clk 0:00:14.4]} 31... Kg7 {[%clk 0:00:20.3]} 32. h5
{[%clk 0:00:13.1]} 32... Ne8 {[%clk 0:00:18.9]} 33. h6+ {[%clk 0:00:12.8]} 33...
Kg8 {[%clk 0:00:19.1]} 34. Bh4 {[%clk 0:00:09.9]} 34... Nd6 {[%clk 0:00:19]} 35.
Qe6+ {[%clk 0:00:08.5]} 35... Kh8 {[%clk 0:00:18]} 36. Kg2 {[%clk 0:00:02.4]}
36... e4 {[%clk 0:00:17.2]} 37. fxe4 {[%clk 0:00:02.4]} 37... Nxe4 {[%clk
0:00:15.8]} 38. Qxe7 {[%clk 0:00:02.2]} 38... Bxe7 {[%clk 0:00:15.5]} 39. Kf3
{[%clk 0:00:02.8]} 39... Nxg5+ {[%clk 0:00:15.1]} 40. Bxg5 {[%clk 0:00:03.1]}
40... Bxg5 {[%clk 0:00:15.4]} 41. Be6 {[%clk 0:00:02.5]} 41... Bxh6 {[%clk
0:00:14.7]} 42. a4 {[%clk 0:00:02.5]} 42... Kg7 {[%clk 0:00:14.7]} 43. Kg4
{[%clk 0:00:02.4]} 43... Kf6 {[%clk 0:00:14.9]} 44. Bf5 {[%clk 0:00:03]} 44...
Bg5 {[%clk 0:00:14.9]} 45. Bxh7 {[%clk 0:00:02.8]} 45... Bh6 {[%clk 0:00:13.2]}
46. Be4 {[%clk 0:00:02.6]} 46... Ke5 {[%clk 0:00:12.9]} 47. Kf3 {[%clk 0:00:03]}
47... Bg5 {[%clk 0:00:12.6]} 48. Bc6 {[%clk 0:00:02.9]} 48... Bh4 {[%clk
0:00:11.9]} 49. Be8 {[%clk 0:00:01.9]} 49... a5 {[%clk 0:00:10.1]} 50. Bg6
{[%clk 0:00:01.4]} 50... Bg3 {[%clk 0:00:10]} 51. Bc2 {[%clk 0:00:01.2]} 51...
Kd4 {[%clk 0:00:10.2]} 0-1

[Event "Betsys MČR v online bleskovém šachu 2021"]
[Site "Chess.com"]
[Date "2021.04.17"]
[Round "1"]
[White "PaulS_CR"]
[Black "Joanna23W"]
[Result "1-0"]
[WhiteElo "1834"]
[BlackElo "2683"]
[TimeControl "180+1"]
[EndTime "9:08:43 PDT"]
[Termination "Uživatel PaulS_CR zvítězil na čas"]

1. Nf3 {[%clk 0:02:58.8]} 1... Nf6 {[%clk 0:02:58.8]} 2. e3 {[%clk 0:02:56.7]}
2... d5 {[%clk 0:02:58]} 3. c4 {[%clk 0:02:56.4]} 3... e6 {[%clk 0:02:53.2]} 4.
b3 {[%clk 0:02:55.9]} 4... Be7 {[%clk 0:02:52.9]} 5. Bb2 {[%clk 0:02:55.4]} 5...
O-O {[%clk 0:02:53]} 6. Nc3 {[%clk 0:02:54.7]} 6... c5 {[%clk 0:02:50.3]} 7.
cxd5 {[%clk 0:02:54.2]} 7... Nxd5 {[%clk 0:02:48.6]} 8. Nxd5 {[%clk 0:02:50.2]}
8... exd5 {[%clk 0:02:46.1]} 9. d4 {[%clk 0:02:49.3]} 9... cxd4 {[%clk
0:02:43.4]} 10. Qxd4 {[%clk 0:02:27.5]} 10... Nc6 {[%clk 0:02:42.2]} 11. Qd2
{[%clk 0:02:24.7]} 11... Bg4 {[%clk 0:02:31.2]} 12. Be2 {[%clk 0:02:22]} 12...
Bb4 {[%clk 0:01:53.7]} 13. Bc3 {[%clk 0:02:20.5]} 13... Bxc3 {[%clk 0:01:53.3]}
14. Qxc3 {[%clk 0:02:20.1]} 14... Rc8 {[%clk 0:01:51.9]} 15. O-O {[%clk
0:02:08.4]} 15... Re8 {[%clk 0:01:28.7]} 16. Rfe1 {[%clk 0:02:01.3]} 16... h6
{[%clk 0:01:24.2]} 17. Qd2 {[%clk 0:01:56.9]} 17... Qd6 {[%clk 0:01:03.4]} 18.
Nd4 {[%clk 0:01:47]} 18... Bxe2 {[%clk 0:00:54.8]} 19. Nxe2 {[%clk 0:01:44.3]}
19... Ne5 {[%clk 0:00:52.6]} 20. h3 {[%clk 0:01:40.4]} 20... Ng6 {[%clk
0:00:47.3]} 21. Ng3 {[%clk 0:01:34.5]} 21... Rc5 {[%clk 0:00:37.8]} 22. Rad1
{[%clk 0:01:33.2]} 22... Qc6 {[%clk 0:00:32.3]} 23. Nf5 {[%clk 0:01:27.3]} 23...
Re5 {[%clk 0:00:31.9]} 24. Nd4 {[%clk 0:01:22.5]} 24... Qf6 {[%clk 0:00:24.4]}
25. Rc1 {[%clk 0:01:19.6]} 25... b6 {[%clk 0:00:23.7]} 26. b4 {[%clk 0:01:12]}
26... Rc4 {[%clk 0:00:20.3]} 27. b5 {[%clk 0:01:06.3]} 27... Nh4 {[%clk
0:00:20.3]} 28. Rxc4 {[%clk 0:00:52.4]} 28... dxc4 {[%clk 0:00:19.4]} 29. Qd1
{[%clk 0:00:52.3]} 29... Qg6 {[%clk 0:00:17]} 30. g3 {[%clk 0:00:43.4]} 30...
Rg5 {[%clk 0:00:14.3]} 31. Kh2 {[%clk 0:00:41.1]} 31... Nf5 {[%clk 0:00:13.9]}
32. Nf3 {[%clk 0:00:35.1]} 32... Rxg3 {[%clk 0:00:12.1]} 33. fxg3 {[%clk
0:00:33.2]} 33... Qxg3+ {[%clk 0:00:11.9]} 34. Kh1 {[%clk 0:00:33.1]} 34...
Qxh3+ {[%clk 0:00:11.9]} 35. Kg1 {[%clk 0:00:33]} 35... Qg3+ {[%clk 0:00:11.3]}
36. Kh1 {[%clk 0:00:32.2]} 36... Qf2 {[%clk 0:00:11.6]} 37. Rg1 {[%clk
0:00:27.2]} 37... Ng3+ {[%clk 0:00:08.8]} 38. Rxg3 {[%clk 0:00:26.1]} 38... Qxg3
{[%clk 0:00:09.1]} 39. Qe2 {[%clk 0:00:25.1]} 39... Qh3+ {[%clk 0:00:08.6]} 40.
Nh2 {[%clk 0:00:23.9]} 40... Qe6 {[%clk 0:00:07.8]} 41. Qd2 {[%clk 0:00:19.7]}
41... Qe4+ {[%clk 0:00:07.3]} 42. Kg1 {[%clk 0:00:19.1]} 42... Qb1+ {[%clk
0:00:07.4]} 43. Kf2 {[%clk 0:00:18.2]} 43... Qxb5 {[%clk 0:00:07.9]} 44. Qd8+
{[%clk 0:00:17]} 44... Kh7 {[%clk 0:00:08.1]} 45. Qd4 {[%clk 0:00:16.3]} 45...
f6 {[%clk 0:00:05]} 46. Nf3 {[%clk 0:00:15.3]} 46... Qa4 {[%clk 0:00:03.6]} 47.
Qe4+ {[%clk 0:00:14.5]} 47... Kg8 {[%clk 0:00:03.5]} 48. Qd5+ {[%clk 0:00:14.2]}
48... Kf8 {[%clk 0:00:03.5]} 49. Nd4 {[%clk 0:00:12.6]} 49... Qxa2+ {[%clk
0:00:02.9]} 50. Kf3 {[%clk 0:00:12]} 50... Qa4 {[%clk 0:00:01.7]} 51. Qd8+
{[%clk 0:00:09.2]} 51... Kf7 {[%clk 0:00:01.8]} 52. Qd7+ {[%clk 0:00:08.6]} 1-0

[Event "Betsys MČR v online bleskovém šachu 2021"]
[Site "Chess.com"]
[Date "2021.04.17"]
[Round "1"]
[White "petiva3"]
[Black "Eliska0107"]
[Result "1-0"]
[WhiteElo "1348"]
[BlackElo "2016"]
[TimeControl "180+1"]
[EndTime "9:08:43 PDT"]
[Termination "Uživatel petiva3 zvítězil na čas"]

1. e4 {[%clk 0:03:00.3]} 1... d6 {[%clk 0:02:59.1]} 2. Nf3 {[%clk 0:02:52.4]}
2... g6 {[%clk 0:02:58.4]} 3. d4 {[%clk 0:02:51.3]} 3... Bg7 {[%clk 0:02:58.3]}
4. Be3 {[%clk 0:02:50.7]} 4... c6 {[%clk 0:02:55.4]} 5. Bd3 {[%clk 0:02:47.4]}
5... Nd7 {[%clk 0:02:54.1]} 6. O-O {[%clk 0:02:46.2]} 6... e5 {[%clk 0:02:52.7]}
7. dxe5 {[%clk 0:02:40.6]} 7... dxe5 {[%clk 0:02:51.8]} 8. Nc3 {[%clk
0:02:38.6]} 8... Qe7 {[%clk 0:02:47.8]} 9. Qd2 {[%clk 0:02:27.8]} 9... h6 {[%clk
0:02:44.5]} 10. Rfe1 {[%clk 0:02:12.6]} 10... Ngf6 {[%clk 0:02:41.6]} 11. Rad1
{[%clk 0:02:10.6]} 11... Ng4 {[%clk 0:02:34.4]} 12. h3 {[%clk 0:02:09.4]} 12...
Nxe3 {[%clk 0:02:33.7]} 13. Qxe3 {[%clk 0:02:09.6]} 13... O-O {[%clk 0:02:30.4]}
14. Ne2 {[%clk 0:01:54.6]} 14... Nc5 {[%clk 0:02:26.9]} 15. Ng3 {[%clk
0:01:50.6]} 15... Be6 {[%clk 0:02:18.5]} 16. a3 {[%clk 0:01:45]} 16... a5 {[%clk
0:02:00.9]} 17. Rd2 {[%clk 0:01:29.4]} 17... a4 {[%clk 0:01:38.7]} 18. Red1
{[%clk 0:01:28.8]} 18... b5 {[%clk 0:01:34.6]} 19. Rb1 {[%clk 0:01:08.5]} 19...
Rfd8 {[%clk 0:01:18.1]} 20. Rbd1 {[%clk 0:01:04.1]} 20... Rdc8 {[%clk
0:01:10.7]} 21. Be2 {[%clk 0:01:00.8]} 21... Kh7 {[%clk 0:01:03]} 22. Kh2 {[%clk
0:00:55.8]} 22... Bf6 {[%clk 0:00:53.3]} 23. Qc3 {[%clk 0:00:53.2]} 23... Nd7
{[%clk 0:00:35.4]} 24. Rd6 {[%clk 0:00:37.2]} 24... Nb6 {[%clk 0:00:17.9]} 25.
Rxc6 {[%clk 0:00:30.9]} 25... Nc4 {[%clk 0:00:17.7]} 26. Rxc8 {[%clk 0:00:29.5]}
26... Rxc8 {[%clk 0:00:17.3]} 27. Bxc4 {[%clk 0:00:28.1]} 27... Bxc4 {[%clk
0:00:16.5]} 28. Qe3 {[%clk 0:00:26.9]} 28... Rc7 {[%clk 0:00:15.7]} 29. Qd2
{[%clk 0:00:23]} 29... Be6 {[%clk 0:00:14.5]} 30. Qd6 {[%clk 0:00:22]} 30...
Qxd6 {[%clk 0:00:13.8]} 31. Rxd6 {[%clk 0:00:22.9]} 31... Rxc2 {[%clk
0:00:13.7]} 32. Rd2 {[%clk 0:00:20.5]} 32... Rxd2 {[%clk 0:00:13]} 33. Nxd2
{[%clk 0:00:21.4]} 33... Be7 {[%clk 0:00:11.9]} 34. Ne2 {[%clk 0:00:19.9]} 34...
b4 {[%clk 0:00:11.7]} 35. axb4 {[%clk 0:00:19.5]} 35... Bxb4 {[%clk 0:00:11.6]}
36. Nb1 {[%clk 0:00:18.2]} 36... f5 {[%clk 0:00:10.5]} 37. exf5 {[%clk
0:00:17.9]} 37... gxf5 {[%clk 0:00:10.6]} 38. Na3 {[%clk 0:00:18.1]} 38... Kg6
{[%clk 0:00:09.9]} 39. Kg3 {[%clk 0:00:17.5]} 39... Kf6 {[%clk 0:00:09.6]} 40.
h4 {[%clk 0:00:15.5]} 40... Bd5 {[%clk 0:00:09.2]} 41. Nc3 {[%clk 0:00:11.8]}
41... Bc6 {[%clk 0:00:08.1]} 42. f3 {[%clk 0:00:09.5]} 42... Ke6 {[%clk
0:00:06.6]} 43. h5 {[%clk 0:00:08.9]} 43... Kd6 {[%clk 0:00:06.2]} 44. Kh4
{[%clk 0:00:09]} 44... Kc5 {[%clk 0:00:05.4]} 45. g4 {[%clk 0:00:07.4]} 45...
fxg4 {[%clk 0:00:04]} 46. fxg4 {[%clk 0:00:08]} 46... Bxa3 {[%clk 0:00:02.2]}
47. bxa3 {[%clk 0:00:07.6]} 47... Kc4 {[%clk 0:00:02.2]} 48. Nb1 {[%clk
0:00:07.5]} 48... e4 {[%clk 0:00:01.6]} 49. Kg3 {[%clk 0:00:06.7]} 49... Kd3
{[%clk 0:00:01.2]} 50. Kf2 {[%clk 0:00:06.6]} 50... e3+ {[%clk 0:00:01.1]} 51.
Ke1 {[%clk 0:00:06.8]} 1-0

[Event "Betsys MČR v online bleskovém šachu 2021"]
[Site "Chess.com"]
[Date "2021.04.17"]
[Round "1"]
[White "viklan"]
[Black "hever99"]
[Result "1/2-1/2"]
[WhiteElo "1574"]
[BlackElo "2171"]
[TimeControl "180+1"]
[EndTime "9:08:44 PDT"]
[Termination "Remíza patem"]

1. d4 {[%clk 0:02:59.6]} 1... Nf6 {[%clk 0:02:59.3]} 2. c4 {[%clk 0:03:00.5]}
2... g6 {[%clk 0:02:59.2]} 3. Nf3 {[%clk 0:03:00.8]} 3... Bg7 {[%clk 0:02:58.7]}
4. g3 {[%clk 0:03:01.7]} 4... c6 {[%clk 0:02:56.7]} 5. Bg2 {[%clk 0:03:02.6]}
5... d5 {[%clk 0:02:56.7]} 6. O-O {[%clk 0:03:03.5]} 6... O-O {[%clk 0:02:56.1]}
7. b3 {[%clk 0:03:01.8]} 7... Bf5 {[%clk 0:02:49.6]} 8. Bb2 {[%clk 0:02:59.9]}
8... Nbd7 {[%clk 0:02:47.7]} 9. Nc3 {[%clk 0:02:58.8]} 9... dxc4 {[%clk
0:02:43.3]} 10. bxc4 {[%clk 0:02:57.9]} 10... Nb6 {[%clk 0:02:43.7]} 11. Ne5
{[%clk 0:02:41.4]} 11... Ng4 {[%clk 0:02:24.7]} 12. Nxg4 {[%clk 0:02:39]} 12...
Bxg4 {[%clk 0:02:24.8]} 13. c5 {[%clk 0:02:35.3]} 13... Nc4 {[%clk 0:02:21.7]}
14. Qb3 {[%clk 0:02:20.4]} 14... Nxb2 {[%clk 0:02:18.7]} 15. Qxb2 {[%clk
0:02:20.3]} 15... Qxd4 {[%clk 0:02:15.3]} 16. Rac1 {[%clk 0:02:17.9]} 16... Qxc5
{[%clk 0:02:10.5]} 17. Qxb7 {[%clk 0:02:14.6]} 17... Bxc3 {[%clk 0:02:03.9]} 18.
Qb3 {[%clk 0:02:03.3]} 18... Bxe2 {[%clk 0:01:56.5]} 19. Rxc3 {[%clk 0:02:02.5]}
19... Qb5 {[%clk 0:01:51.3]} 20. Rfc1 {[%clk 0:01:47.5]} 20... Qxb3 {[%clk
0:01:47.6]} 21. axb3 {[%clk 0:01:45.6]} 21... Rab8 {[%clk 0:01:45.4]} 22. Bxc6
{[%clk 0:01:43.6]} 22... Bg4 {[%clk 0:01:38.7]} 23. f3 {[%clk 0:01:40.7]} 23...
Be6 {[%clk 0:01:37.3]} 24. Ba4 {[%clk 0:01:38.9]} 24... Rb7 {[%clk 0:01:33.4]}
25. Rc7 {[%clk 0:01:37]} 25... Rfb8 {[%clk 0:01:32.2]} 26. Kf2 {[%clk
0:01:32.8]} 26... Bxb3 {[%clk 0:01:25.1]} 27. Bxb3 {[%clk 0:01:29.9]} 27... Rxb3
{[%clk 0:01:24.3]} 28. Rxe7 {[%clk 0:01:27.2]} 28... Rb2+ {[%clk 0:01:24.1]} 29.
Ke3 {[%clk 0:01:22.7]} 29... R8b7 {[%clk 0:01:18.9]} 30. Rcc7 {[%clk 0:01:14.8]}
30... Rxc7 {[%clk 0:01:13.9]} 31. Rxc7 {[%clk 0:01:14.2]} 31... a5 {[%clk
0:01:13.9]} 32. Ra7 {[%clk 0:01:13.8]} 32... Ra2 {[%clk 0:01:11.7]} 33. h4
{[%clk 0:01:13.1]} 33... Ra3+ {[%clk 0:01:08.2]} 34. Kf4 {[%clk 0:01:12.9]}
34... a4 {[%clk 0:01:07.5]} 35. g4 {[%clk 0:01:04.3]} 35... h6 {[%clk
0:00:57.7]} 36. g5 {[%clk 0:01:01.8]} 36... h5 {[%clk 0:00:55.6]} 37. Ke4 {[%clk
0:00:58]} 37... Kg7 {[%clk 0:00:55]} 38. f4 {[%clk 0:00:55.1]} 38... Rh3 {[%clk
0:00:51.8]} 39. Rxa4 {[%clk 0:00:53]} 39... Rxh4 {[%clk 0:00:52.1]} 40. Ra7
{[%clk 0:00:52.1]} 40... Rg4 {[%clk 0:00:51.6]} 41. Kf3 {[%clk 0:00:50.9]} 41...
Rg1 {[%clk 0:00:49.3]} 42. Kf2 {[%clk 0:00:49.5]} 42... Rd1 {[%clk 0:00:48.5]}
43. Kf3 {[%clk 0:00:46.2]} 43... Rd6 {[%clk 0:00:46.5]} 44. Rb7 {[%clk 0:00:43]}
44... Re6 {[%clk 0:00:43]} 45. Rb8 {[%clk 0:00:42.5]} 45... Re7 {[%clk 0:00:35]}
46. Rb6 {[%clk 0:00:41.6]} 46... Re6 {[%clk 0:00:32.2]} 47. Rb5 {[%clk
0:00:40.6]} 47... f6 {[%clk 0:00:22.1]} 48. f5 {[%clk 0:00:28.1]} 48... gxf5
{[%clk 0:00:20.5]} 49. Rxf5 {[%clk 0:00:25.7]} 49... fxg5 {[%clk 0:00:16.6]} 50.
Rxg5+ {[%clk 0:00:25.4]} 50... Kh6 {[%clk 0:00:15.6]} 51. Rb5 {[%clk 0:00:24.1]}
51... Rg6 {[%clk 0:00:14.8]} 52. Rb2 {[%clk 0:00:19.3]} 52... h4 {[%clk
0:00:13.6]} 53. Rg2 {[%clk 0:00:17.8]} 53... Rxg2 {[%clk 0:00:10.1]} 54. Kxg2
{[%clk 0:00:17.4]} 54... Kh5 {[%clk 0:00:10.5]} 55. Kh3 {[%clk 0:00:17.5]} 55...
Kg5 {[%clk 0:00:10.8]} 56. Kh2 {[%clk 0:00:17.4]} 56... Kg4 {[%clk 0:00:11]} 57.
Kg2 {[%clk 0:00:17.7]} 57... h3+ {[%clk 0:00:11]} 58. Kh2 {[%clk 0:00:17.9]}
58... Kh4 {[%clk 0:00:10.7]} 59. Kh1 {[%clk 0:00:17.8]} 59... Kg3 {[%clk
0:00:11]} 60. Kg1 {[%clk 0:00:18]} 60... h2+ {[%clk 0:00:11.2]} 61. Kh1 {[%clk
0:00:18.2]} 61... Kh3 {[%clk 0:00:11.6]} 1/2-1/2

[Event "Betsys MČR v online bleskovém šachu 2021"]
[Site "Chess.com"]
[Date "2021.04.17"]
[Round "1"]
[White "Alesbar"]
[Black "Pantata007"]
[Result "0-1"]
[WhiteElo "1636"]
[BlackElo "2268"]
[TimeControl "180+1"]
[EndTime "9:09:00 PDT"]
[Termination "Uživatel Pantata007 zvítězil na čas"]

1. Nf3 {[%clk 0:03:00.9]} 1... d5 {[%clk 0:02:57.5]} 2. g3 {[%clk 0:03:00.2]}
2... Nf6 {[%clk 0:02:56.9]} 3. Bg2 {[%clk 0:02:59.8]} 3... c6 {[%clk 0:02:57.3]}
4. O-O {[%clk 0:02:59.3]} 4... Bg4 {[%clk 0:02:57.5]} 5. d4 {[%clk 0:02:58.7]}
5... e6 {[%clk 0:02:55.3]} 6. Nbd2 {[%clk 0:02:58.2]} 6... Nbd7 {[%clk
0:02:54.9]} 7. c4 {[%clk 0:02:57.5]} 7... Be7 {[%clk 0:02:51.1]} 8. c5 {[%clk
0:02:57]} 8... b6 {[%clk 0:02:48.5]} 9. b4 {[%clk 0:02:56.4]} 9... a5 {[%clk
0:02:47.9]} 10. bxa5 {[%clk 0:02:55.2]} 10... bxc5 {[%clk 0:02:47.4]} 11. dxc5
{[%clk 0:02:51.9]} 11... Bxc5 {[%clk 0:02:41.2]} 12. Nb3 {[%clk 0:02:50.9]}
12... Bd6 {[%clk 0:02:36.9]} 13. Bb2 {[%clk 0:02:49]} 13... O-O {[%clk 0:02:36]}
14. Rc1 {[%clk 0:02:43.9]} 14... c5 {[%clk 0:02:34.1]} 15. h3 {[%clk 0:02:38.9]}
15... Bxf3 {[%clk 0:02:26.4]} 16. Bxf3 {[%clk 0:02:37.5]} 16... c4 {[%clk
0:02:19.7]} 17. Nd4 {[%clk 0:02:23.6]} 17... Qxa5 {[%clk 0:02:19.1]} 18. Nc6
{[%clk 0:02:22.8]} 18... Qxa2 {[%clk 0:02:11.8]} 19. Bxf6 {[%clk 0:02:16.8]}
19... Nxf6 {[%clk 0:02:09.8]} 20. Nd4 {[%clk 0:02:14.6]} 20... Rfc8 {[%clk
0:01:56.8]} 21. Rc2 {[%clk 0:02:02.6]} 21... Qa4 {[%clk 0:01:52.5]} 22. Qd2
{[%clk 0:01:33.6]} 22... h6 {[%clk 0:01:51.7]} 23. e3 {[%clk 0:01:20.7]} 23...
Bb4 {[%clk 0:01:47.2]} 24. Qc1 {[%clk 0:01:19]} 24... c3 {[%clk 0:01:33.7]} 25.
Ne2 {[%clk 0:01:16.4]} 25... Rc5 {[%clk 0:01:21]} 26. Nxc3 {[%clk 0:01:09.3]}
26... Qc6 {[%clk 0:01:08.4]} 27. Nxd5 {[%clk 0:00:54.1]} 27... exd5 {[%clk
0:01:02.9]} 28. Rxc5 {[%clk 0:00:48.8]} 28... Qxc5 {[%clk 0:01:02.5]} 29. Qxc5
{[%clk 0:00:47.2]} 29... Bxc5 {[%clk 0:01:03.4]} 30. Rd1 {[%clk 0:00:46.7]}
30... Rd8 {[%clk 0:01:02.5]} 31. Kf1 {[%clk 0:00:45.5]} 31... Kf8 {[%clk
0:01:02]} 32. Ke2 {[%clk 0:00:45]} 32... Ke7 {[%clk 0:01:02]} 33. Kd3 {[%clk
0:00:42.1]} 33... Ke6 {[%clk 0:00:51.7]} 34. Rc1 {[%clk 0:00:41.2]} 34... Rc8
{[%clk 0:00:43.6]} 35. Rc2 {[%clk 0:00:37.8]} 35... Rc7 {[%clk 0:00:43]} 36. Ra2
{[%clk 0:00:36]} 36... Ra7 {[%clk 0:00:41.7]} 37. Rc2 {[%clk 0:00:33.8]} 37...
Ra3+ {[%clk 0:00:39.5]} 38. Ke2 {[%clk 0:00:33.9]} 38... Kd6 {[%clk 0:00:37.9]}
39. g4 {[%clk 0:00:30.9]} 39... g5 {[%clk 0:00:28.2]} 40. Bg2 {[%clk 0:00:27.4]}
40... Ne4 {[%clk 0:00:21.1]} 41. Bxe4 {[%clk 0:00:26.3]} 41... dxe4 {[%clk
0:00:20]} 42. Rd2+ {[%clk 0:00:22.4]} 42... Ke6 {[%clk 0:00:19.7]} 43. Rc2
{[%clk 0:00:20.7]} 43... Bd6 {[%clk 0:00:18.8]} 44. Rc6 {[%clk 0:00:17.6]} 44...
Ra2+ {[%clk 0:00:16.5]} 45. Kf1 {[%clk 0:00:17.8]} 45... Kd5 {[%clk 0:00:16.3]}
46. Rc8 {[%clk 0:00:16.4]} 46... Ke6 {[%clk 0:00:08.2]} 47. Rh8 {[%clk
0:00:13.8]} 47... f6 {[%clk 0:00:08]} 48. Rxh6 {[%clk 0:00:11.7]} 48... Ra7
{[%clk 0:00:08.4]} 49. Rh8 {[%clk 0:00:10.2]} 49... Rd7 {[%clk 0:00:08.6]} 50.
Re8+ {[%clk 0:00:08.3]} 50... Be7 {[%clk 0:00:08.1]} 51. Kg2 {[%clk 0:00:07.1]}
51... Rd8 {[%clk 0:00:06]} 52. Rxd8 {[%clk 0:00:04.6]} 52... Bxd8 {[%clk
0:00:06.9]} 53. f3 {[%clk 0:00:04.5]} 53... exf3+ {[%clk 0:00:05.1]} 54. Kxf3
{[%clk 0:00:04.7]} 54... Ke5 {[%clk 0:00:05.2]} 0-1

[Event "Betsys MČR v online bleskovém šachu 2021"]
[Site "Chess.com"]
[Date "2021.04.17"]
[Round "1"]
[White "phil3"]
[Black "pepca"]
[Result "1-0"]
[WhiteElo "2170"]
[BlackElo "1511"]
[TimeControl "180+1"]
[EndTime "9:09:00 PDT"]
[Termination "Uživatel phil3 zvítězil na čas"]

1. e4 {[%clk 0:03:00.9]} 1... e5 {[%clk 0:02:58.9]} 2. Nf3 {[%clk 0:03:00.6]}
2... Nc6 {[%clk 0:02:58.3]} 3. Nc3 {[%clk 0:03:01.1]} 3... Nf6 {[%clk
0:02:57.4]} 4. d4 {[%clk 0:03:01.2]} 4... exd4 {[%clk 0:02:54.7]} 5. Nxd4 {[%clk
0:03:01.6]} 5... Nxd4 {[%clk 0:02:54.6]} 6. Qxd4 {[%clk 0:03:01.1]} 6... c5
{[%clk 0:02:54.2]} 7. Qd3 {[%clk 0:03:00.7]} 7... d6 {[%clk 0:02:52.6]} 8. Be2
{[%clk 0:03:00.5]} 8... Be6 {[%clk 0:02:50.5]} 9. a4 {[%clk 0:02:59.6]} 9... Be7
{[%clk 0:02:46.7]} 10. O-O {[%clk 0:02:58.6]} 10... O-O {[%clk 0:02:46]} 11. f4
{[%clk 0:02:58.1]} 11... c4 {[%clk 0:02:45.9]} 12. Qd1 {[%clk 0:02:56.4]} 12...
d5 {[%clk 0:02:44]} 13. e5 {[%clk 0:02:55.4]} 13... Ne8 {[%clk 0:02:37]} 14. Bf3
{[%clk 0:02:53.9]} 14... Nc7 {[%clk 0:02:36.1]} 15. Be3 {[%clk 0:02:50.1]} 15...
f6 {[%clk 0:02:30.4]} 16. Bd4 {[%clk 0:02:47.3]} 16... fxe5 {[%clk 0:02:26.2]}
17. fxe5 {[%clk 0:02:47.5]} 17... Bf7 {[%clk 0:02:13]} 18. Qe2 {[%clk
0:02:46.8]} 18... Ne6 {[%clk 0:02:12.2]} 19. Bf2 {[%clk 0:02:41.5]} 19... Nf4
{[%clk 0:02:10.6]} 20. Qd2 {[%clk 0:02:39.8]} 20... Be6 {[%clk 0:02:01.5]} 21.
Be3 {[%clk 0:02:36.4]} 21... Ng6 {[%clk 0:01:59.2]} 22. Bd4 {[%clk 0:02:31.7]}
22... Bg5 {[%clk 0:01:45.5]} 23. Qe1 {[%clk 0:02:31.7]} 23... Qd7 {[%clk
0:01:41.9]} 24. Rd1 {[%clk 0:02:27.2]} 24... Rf7 {[%clk 0:01:41.2]} 25. Bh5
{[%clk 0:02:17.9]} 25... Rxf1+ {[%clk 0:01:33.5]} 26. Qxf1 {[%clk 0:02:17.2]}
26... Ne7 {[%clk 0:01:32.7]} 27. Bf3 {[%clk 0:02:14.3]} 27... Nf5 {[%clk
0:01:31.2]} 28. Kh1 {[%clk 0:02:09.2]} 28... Be3 {[%clk 0:01:29.2]} 29. Nb5
{[%clk 0:01:13.9]} 29... a6 {[%clk 0:01:27.9]} 30. Qe2 {[%clk 0:00:42.6]} 30...
axb5 {[%clk 0:01:15.1]} 31. Bxe3 {[%clk 0:00:42.4]} 31... d4 {[%clk 0:01:12.3]}
32. Bf4 {[%clk 0:00:32.6]} 32... bxa4 {[%clk 0:01:00.9]} 33. Qe4 {[%clk
0:00:29.8]} 33... Rb8 {[%clk 0:00:47.4]} 34. g4 {[%clk 0:00:23.6]} 34... Nh4
{[%clk 0:00:42.5]} 35. Rxd4 {[%clk 0:00:16.8]} 35... Qc8 {[%clk 0:00:33]} 36. c3
{[%clk 0:00:13.4]} 36... Nxf3 {[%clk 0:00:28.3]} 37. Qxf3 {[%clk 0:00:13.2]}
37... Bxg4 {[%clk 0:00:27.7]} 38. Qd5+ {[%clk 0:00:12.4]} 38... Be6 {[%clk
0:00:26.4]} 39. Qd6 {[%clk 0:00:11.7]} 39... Qc6+ {[%clk 0:00:25.6]} 40. Qxc6
{[%clk 0:00:10.5]} 40... bxc6 {[%clk 0:00:25.8]} 41. Bc1 {[%clk 0:00:08.2]}
41... a3 {[%clk 0:00:20.2]} 42. bxa3 {[%clk 0:00:06.5]} 42... Rb3 {[%clk
0:00:19.3]} 43. Bd2 {[%clk 0:00:05]} 43... Rxa3 {[%clk 0:00:17.7]} 44. Kg1
{[%clk 0:00:05.2]} 44... Ra2 {[%clk 0:00:15.4]} 45. Kf2 {[%clk 0:00:04.3]} 45...
c5 {[%clk 0:00:15.3]} 46. Rd6 {[%clk 0:00:03.9]} 46... Kf7 {[%clk 0:00:14.5]}
47. Kg3 {[%clk 0:00:03.7]} 47... Ke7 {[%clk 0:00:13.9]} 48. h4 {[%clk
0:00:01.5]} 48... Kf7 {[%clk 0:00:14.1]} 49. h5 {[%clk 0:00:02]} 49... h6 {[%clk
0:00:12.3]} 50. Kh4 {[%clk 0:00:02.1]} 50... Ke7 {[%clk 0:00:11]} 51. Kg3 {[%clk
0:00:02.4]} 51... Kf7 {[%clk 0:00:09.8]} 52. Kf4 {[%clk 0:00:03]} 52... Ke7
{[%clk 0:00:09.8]} 53. Kg3 {[%clk 0:00:03.7]} 53... Bf7 {[%clk 0:00:05.8]} 54.
Kf4 {[%clk 0:00:03.8]} 54... Be6 {[%clk 0:00:05.6]} 55. Be3 {[%clk 0:00:04]}
55... Rc2 {[%clk 0:00:03.4]} 56. Bxc5 {[%clk 0:00:04.2]} 56... Rxc3 {[%clk
0:00:02.7]} 57. Rd3+ {[%clk 0:00:04.4]} 57... Kf7 {[%clk 0:00:01.3]} 58. Rxc3
{[%clk 0:00:05]} 1-0